[Event "Elite Hotels Open 2024"]
[Site "Elite Stadshotellet, Kungsgatan 6, Vaxjo, Sweden"]
[Date "2024.02.10"]
[Round "5.1"]
[White "Sorensen, Hampus"]
[Black "Seo, Jung Min"]
[Result "1/2-1/2"]
[TimeControl "15 minutes + 5 seconds per move from move one (Round 1 - 4) / 90 minutes + 30 seconds per move from move one (Round 5 - 8)"]
[WhiteTitle "IM"]
[BlackTitle "IM"]
[WhiteFideId "8703884"]
[BlackFideId "1734687"]
[WhiteElo "2430"]
[BlackElo "2466"]

1. d4 {[%clk 01:30:48]} {[%emt 00:00:11]} Nf6 {[%clk 01:30:58]} {[%emt
00:00:03]} 2. c4 {[%clk 01:31:09]} {[%emt 00:00:08]} e6 {[%clk 01:31:26]}
{[%emt 00:00:02]} 3. Nc3 {[%clk 01:31:31]} {[%emt 00:00:08]} Bb4 {[%clk
01:31:53]} {[%emt 00:00:03]} 4. e3 {[%clk 01:31:54]} {[%emt 00:00:07]} b6
{[%clk 01:32:17]} {[%emt 00:00:07]} 5. Bd2 {[%clk 01:26:32]} {[%emt 00:05:51]}
Bb7 {[%clk 01:31:15]} {[%emt 00:01:32]} 6. Nf3 {[%clk 01:26:52]} {[%emt
00:00:10]} Bxc3 {[%clk 01:20:07]} {[%emt 00:11:38]} 7. Bxc3 {[%clk 01:27:07]}
{[%emt 00:00:15]} Ne4 {[%clk 01:20:36]} 8. Rc1 {[%clk 01:21:48]} {[%emt
00:05:50]} Nxc3 {[%clk 01:19:47]} {[%emt 00:01:20]} 9. Rxc3 {[%clk 01:22:12]}
{[%emt 00:00:05]} d6 {[%clk 01:19:04]} {[%emt 00:01:13]} 10. Bd3 {[%clk
01:21:55]} {[%emt 00:00:47]} Nd7 {[%clk 01:18:54]} {[%emt 00:00:40]} 11. e4
{[%clk 01:16:28]} {[%emt 00:05:58]} c5 {[%clk 01:11:33]} {[%emt 00:07:51]} 12.
d5 {[%clk 01:16:52]} {[%emt 00:00:06]} exd5 {[%clk 01:09:30]} {[%emt 00:02:32]}
13. cxd5 {[%clk 01:09:30]} {[%emt 00:07:53]} O-O {[%clk 01:09:23]} {[%emt
00:00:37]} 14. O-O {[%clk 01:09:47]} {[%emt 00:00:13]} Qf6 {[%clk 01:07:06]}
{[%emt 00:02:47]} 15. Nd2 {[%clk 00:58:55]} {[%emt 00:11:21]} Ne5 {[%clk
01:05:52]} {[%emt 00:01:45]} 16. Be2 {[%clk 00:59:01]} {[%emt 00:00:23]} Ng6
{[%clk 01:05:40]} {[%emt 00:00:41]} 17. Re1 {[%clk 00:58:21]} {[%emt 00:01:11]}
Bc8 {[%clk 01:02:36]} {[%emt 00:03:33]} 18. a4 {[%clk 00:52:53]} {[%emt
00:05:59]} Bd7 {[%clk 01:00:55]} {[%emt 00:02:11]} 19. Bb5 {[%clk 00:49:00]}
{[%emt 00:04:23]} Bxb5 {[%clk 00:58:39]} {[%emt 00:02:47]} 20. axb5 {[%clk
00:49:29]} {[%emt 00:00:01]} a6 {[%clk 00:52:38]} {[%emt 00:06:31]} 21. Qb3
{[%clk 00:43:40]} {[%emt 00:06:19]} axb5 {[%clk 00:51:11]} {[%emt 00:01:56]} 22.
Qxb5 {[%clk 00:44:08]} {[%emt 00:00:02]} Rfb8 {[%clk 00:51:19]} {[%emt
00:00:21]} 23. Nc4 {[%clk 00:37:41]} {[%emt 00:06:57]} Ne5 {[%clk 00:51:32]}
{[%emt 00:00:18]} 24. Nxe5 {[%clk 00:37:50]} {[%emt 00:00:21]} Qxe5 {[%clk
00:51:59]} {[%emt 00:00:03]} 25. g3 {[%clk 00:32:07]} {[%emt 00:06:13]} h5
{[%clk 00:38:29]} {[%emt 00:14:00]} 26. Rf3 {[%clk 00:31:31]} {[%emt 00:01:06]}
g6 {[%clk 00:37:33]} {[%emt 00:01:26]} 27. Ree3 {[%clk 00:26:39]} {[%emt
00:05:21]} Ra1+ {[%clk 00:34:54]} {[%emt 00:03:10]} 28. Kg2 {[%clk 00:27:04]}
{[%emt 00:00:05]} Ra7 {[%clk 00:35:19]} {[%emt 00:00:05]} 29. h4 {[%clk
00:23:42]} {[%emt 00:03:52]} Kg7 {[%clk 00:34:59]} {[%emt 00:00:50]} 30. Rf4
{[%clk 00:21:43]} {[%emt 00:02:28]} 1/2-1/2

[Event "Elite Hotels Open 2024"]
[Site "Elite Stadshotellet, Kungsgatan 6, Vaxjo, Sweden"]
[Date "2024.02.10"]
[Round "5.2"]
[White "Hillarp, Tiger"]
[Black "Crevatin, Leo"]
[Result "1-0"]
[TimeControl "15 minutes + 5 seconds per move from move one (Round 1 - 4) / 90 minutes + 30 seconds per move from move one (Round 5 - 8)"]
[WhiteTitle "GM"]
[BlackTitle "FM"]
[WhiteFideId "1700812"]
[BlackFideId "1726307"]
[WhiteElo "2476"]
[BlackElo "2303"]

1. Nf3 {[%clk 01:29:55]} {[%emt 00:01:04]} Nf6 {[%clk 01:30:11]} {[%emt
00:00:49]} 2. g3 {[%clk 01:29:55]} {[%emt 00:00:30]} d5 {[%clk 01:30:25]}
{[%emt 00:00:16]} 3. Bg2 {[%clk 01:30:19]} {[%emt 00:00:07]} e6 {[%clk
01:30:22]} {[%emt 00:00:32]} 4. O-O {[%clk 01:30:40]} {[%emt 00:00:08]} Be7
{[%clk 01:30:43]} {[%emt 00:00:10]} 5. d3 {[%clk 01:30:26]} {[%emt 00:00:45]}
c5 {[%clk 01:29:31]} {[%emt 00:01:42]} 6. Nbd2 {[%clk 01:30:48]} {[%emt
00:00:07]} Nc6 {[%clk 01:29:08]} {[%emt 00:00:52]} 7. e4 {[%clk 01:31:11]}
{[%emt 00:00:08]} b5 {[%clk 01:28:09]} {[%emt 00:01:29]} 8. Re1 {[%clk
01:28:14]} {[%emt 00:03:27]} b4 {[%clk 01:25:57]} {[%emt 00:02:43]} 9. h4
{[%clk 01:15:15]} {[%emt 00:13:28]} a5 {[%clk 01:19:38]} {[%emt 00:06:48]} 10.
a3 {[%clk 01:08:45]} {[%emt 00:07:01]} Ba6 {[%clk 01:14:01]} {[%emt 00:06:07]}
11. exd5 {[%clk 01:07:19]} {[%emt 00:01:56]} exd5 {[%clk 01:05:09]} {[%emt
00:09:22]} 12. axb4 {[%clk 01:00:51]} {[%emt 00:06:58]} axb4 {[%clk 01:03:17]}
{[%emt 00:02:21]} 13. Nb3 {[%clk 00:59:25]} {[%emt 00:01:57]} O-O {[%clk
00:59:43]} {[%emt 00:04:02]} 14. Bg5 {[%clk 00:54:56]} {[%emt 00:05:01]} c4
{[%clk 00:41:52]} {[%emt 00:18:21]} 15. dxc4 {[%clk 00:46:39]} {[%emt
00:08:47]} Bxc4 {[%clk 00:39:45]} {[%emt 00:02:37]} 16. Rxa8 {[%clk 00:46:06]}
{[%emt 00:01:03]} Qxa8 {[%clk 00:40:09]} {[%emt 00:00:06]} 17. Nbd4 {[%clk
00:45:59]} {[%emt 00:00:36]} Nxd4 {[%clk 00:35:11]} {[%emt 00:05:28]} 18. Nxd4
{[%clk 00:45:32]} {[%emt 00:00:58]} Bd8 {[%clk 00:33:44]} {[%emt 00:01:57]} 19.
Nf5 {[%clk 00:43:03]} {[%emt 00:02:58]} h6 {[%clk 00:30:39]} {[%emt 00:03:36]}
20. Bf4 {[%clk 00:19:43]} {[%emt 00:23:50]} Qc8 {[%clk 00:19:41]} {[%emt
00:11:27]} 21. Bh3 {[%clk 00:14:55]} {[%emt 00:05:18]} Qb7 {[%clk 00:18:03]}
{[%emt 00:02:09]} 22. Qd2 {[%clk 00:13:26]} {[%emt 00:01:59]} Ne4 {[%clk
00:14:23]} {[%emt 00:04:10]} 23. Rxe4 {[%clk 00:13:49]} {[%emt 00:00:08]} dxe4
{[%clk 00:14:35]} {[%emt 00:00:18]} 24. Qd4 {[%clk 00:13:29]} {[%emt 00:00:50]}
Bf6 {[%clk 00:12:23]} {[%emt 00:02:41]} 25. Qxc4 {[%clk 00:13:49]} {[%emt
00:00:11]} Bxb2 {[%clk 00:10:48]} {[%emt 00:02:04]} 26. Bg2 {[%clk 00:12:17]}
{[%emt 00:02:02]} Bc3 {[%clk 00:09:37]} {[%emt 00:01:42]} 27. Bxe4 {[%clk
00:12:32]} {[%emt 00:00:14]} Qa7 {[%clk 00:08:51]} {[%emt 00:01:15]} 28. Qd5
{[%clk 00:11:44]} {[%emt 00:01:19]} Qa1+ {[%clk 00:08:01]} {[%emt 00:01:21]} 29.
Kg2 {[%clk 00:12:05]} {[%emt 00:00:09]} Qe1 {[%clk 00:07:26]} {[%emt 00:01:05]}
30. Ne7+ {[%clk 00:11:59]} {[%emt 00:00:36]} Kh8 {[%clk 00:07:25]} {[%emt
00:00:30]} 31. Qf5 {[%clk 00:12:20]} {[%emt 00:00:10]} 1-0

[Event "Elite Hotels Open 2024"]
[Site "Elite Stadshotellet, Kungsgatan 6, Vaxjo, Sweden"]
[Date "2024.02.10"]
[Round "5.3"]
[White "Pantzar, Milton"]
[Black "Eklund, Joel"]
[Result "1-0"]
[TimeControl "15 minutes + 5 seconds per move from move one (Round 1 - 4) / 90 minutes + 30 seconds per move from move one (Round 5 - 8)"]
[WhiteTitle "IM"]
[WhiteFideId "1721003"]
[BlackFideId "1705288"]
[WhiteElo "2468"]
[BlackElo "2258"]

1. d4 {[%clk 01:30:54]} {[%emt 00:00:06]} Nf6 {[%clk 01:30:46]} {[%emt
00:00:15]} 2. Nf3 {[%clk 01:31:01]} {[%emt 00:00:22]} c5 {[%clk 01:30:57]}
{[%emt 00:00:19]} 3. d5 {[%clk 01:31:17]} {[%emt 00:00:14]} e6 {[%clk
01:31:17]} {[%emt 00:00:11]} 4. c4 {[%clk 01:31:25]} {[%emt 00:00:22]} d6
{[%clk 01:31:29]} {[%emt 00:00:18]} 5. Nc3 {[%clk 01:31:46]} {[%emt 00:00:09]}
exd5 {[%clk 01:31:51]} {[%emt 00:00:08]} 6. cxd5 {[%clk 01:32:08]} {[%emt
00:00:08]} g6 {[%clk 01:32:11]} {[%emt 00:00:10]} 7. e4 {[%clk 01:32:17]}
{[%emt 00:00:21]} a6 {[%clk 01:32:12]} {[%emt 00:00:30]} 8. Be2 {[%clk
01:30:10]} {[%emt 00:02:36]} Bg4 {[%clk 01:29:11]} {[%emt 00:03:31]} 9. O-O
{[%clk 01:15:07]} {[%emt 00:15:33]} Bxf3 {[%clk 01:28:57]} {[%emt 00:00:45]} 10.
Bxf3 {[%clk 01:15:26]} {[%emt 00:00:10]} Bg7 {[%clk 01:29:07]} {[%emt
00:00:18]} 11. Bf4 {[%clk 01:06:52]} {[%emt 00:09:05]} O-O {[%clk 01:29:13]}
{[%emt 00:00:24]} 12. e5 {[%clk 01:02:42]} {[%emt 00:04:41]} dxe5 {[%clk
01:28:47]} {[%emt 00:00:56]} 13. Bxe5 {[%clk 01:03:05]} {[%emt 00:00:06]} Nbd7
{[%clk 01:28:03]} {[%emt 00:01:13]} 14. Bg3 {[%clk 01:03:09]} {[%emt 00:00:26]}
b5 {[%clk 01:25:54]} {[%emt 00:02:40]} 15. Qc2 {[%clk 00:59:29]} {[%emt
00:04:10]} Nb6 {[%clk 01:23:53]} {[%emt 00:02:31]} 16. d6 {[%clk 00:55:02]}
{[%emt 00:04:57]} Ra7 {[%clk 01:22:32]} {[%emt 00:01:51]} 17. a4 {[%clk
00:51:04]} {[%emt 00:04:28]} bxa4 {[%clk 01:09:17]} {[%emt 00:13:45]} 18. Nxa4
{[%clk 00:50:26]} {[%emt 00:01:08]} Nxa4 {[%clk 01:09:40]} {[%emt 00:00:06]} 19.
Rxa4 {[%clk 00:50:02]} {[%emt 00:00:54]} Qb6 {[%clk 01:09:57]} {[%emt
00:00:13]} 20. Re1 {[%clk 00:35:21]} {[%emt 00:15:11]} Rd8 {[%clk 00:59:23]}
{[%emt 00:11:04]} 21. Rc4 {[%clk 00:29:49]} {[%emt 00:06:02]} Ne8 {[%clk
00:39:02]} {[%emt 00:20:51]} 22. Rxc5 {[%clk 00:25:13]} {[%emt 00:05:06]} Nxd6
{[%clk 00:39:23]} {[%emt 00:00:08]} 23. Rd1 {[%clk 00:10:36]} {[%emt 00:15:07]}
Rad7 {[%clk 00:31:57]} {[%emt 00:07:56]} 24. Rcd5 {[%clk 00:09:40]} {[%emt
00:01:26]} Bf6 {[%clk 00:19:45]} {[%emt 00:12:42]} 25. Qd3 {[%clk 00:07:48]}
{[%emt 00:02:22]} Qxb2 {[%clk 00:18:55]} {[%emt 00:01:21]} 26. Bxd6 {[%clk
00:07:17]} {[%emt 00:01:00]} a5 {[%clk 00:18:49]} {[%emt 00:00:37]} 27. Bc7
{[%clk 00:05:07]} {[%emt 00:02:40]} Rxd5 {[%clk 00:14:33]} {[%emt 00:04:46]} 28.
Bxd5 {[%clk 00:05:27]} {[%emt 00:00:09]} Rd7 {[%clk 00:14:57]} {[%emt
00:00:06]} 29. Bxa5 {[%clk 00:05:14]} {[%emt 00:00:44]} Kg7 {[%clk 00:15:23]}
{[%emt 00:00:04]} 30. g3 {[%clk 00:04:35]} {[%emt 00:01:08]} h5 {[%clk
00:15:48]} {[%emt 00:00:05]} 31. h4 {[%clk 00:04:12]} {[%emt 00:00:53]} Rd6
{[%clk 00:15:44]} {[%emt 00:00:34]} 32. Bc7 {[%clk 00:04:08]} {[%emt 00:00:34]}
Rd7 {[%clk 00:16:09]} {[%emt 00:00:05]} 33. Bf4 {[%clk 00:04:19]} {[%emt
00:00:18]} Qb4 {[%clk 00:12:14]} {[%emt 00:04:26]} 34. Be3 {[%clk 00:04:07]}
{[%emt 00:00:42]} Qg4 {[%clk 00:12:24]} {[%emt 00:00:20]} 35. Bd4 {[%clk
00:03:51]} {[%emt 00:00:46]} g5 {[%clk 00:10:42]} {[%emt 00:02:12]} 36. Bxf6+
{[%clk 00:03:53]} {[%emt 00:00:27]} Kxf6 {[%clk 00:11:07]} {[%emt 00:00:06]} 37.
Qf3+ {[%clk 00:03:04]} {[%emt 00:01:18]} Ke5 {[%clk 00:11:31]} {[%emt
00:00:07]} 38. Qc3+ {[%clk 00:02:33]} {[%emt 00:01:01]} Kf5 {[%clk 00:11:19]}
{[%emt 00:00:43]} 39. Be4+ {[%clk 00:02:10]} {[%emt 00:00:52]} Kxe4 {[%clk
00:11:21]} {[%emt 00:00:28]} 40. Qe3+ {[%clk 00:01:39]} {[%emt 00:01:00]} 1-0

[Event "Elite Hotels Open 2024"]
[Site "Elite Stadshotellet, Kungsgatan 6, Vaxjo, Sweden"]
[Date "2024.02.10"]
[Round "5.4"]
[White "Kristensen, Kaare Hove"]
[Black "Johansson, Linus"]
[Result "1/2-1/2"]
[TimeControl "15 minutes + 5 seconds per move from move one (Round 1 - 4) / 90 minutes + 30 seconds per move from move one (Round 5 - 8)"]
[WhiteTitle "IM"]
[BlackTitle "IM"]
[WhiteFideId "1400940"]
[BlackFideId "1711113"]
[WhiteElo "2324"]
[BlackElo "2434"]

1. c4 {[%clk 01:27:38]} {[%emt 00:03:20]} Nf6 {[%clk 01:30:35]} {[%emt
00:00:25]} 2. Nc3 {[%clk 01:26:45]} {[%emt 00:01:22]} c5 {[%clk 01:30:33]}
{[%emt 00:00:34]} 3. Nf3 {[%clk 01:25:38]} {[%emt 00:01:35]} d5 {[%clk
01:30:52]} {[%emt 00:00:12]} 4. cxd5 {[%clk 01:22:53]} {[%emt 00:03:15]} Nxd5
{[%clk 01:31:17]} {[%emt 00:00:05]} 5. g3 {[%clk 01:16:57]} {[%emt 00:06:25]}
Nc7 {[%clk 01:31:34]} {[%emt 00:00:14]} 6. Bg2 {[%clk 01:17:20]} {[%emt
00:00:07]} Nc6 {[%clk 01:31:59]} {[%emt 00:00:05]} 7. O-O {[%clk 01:17:36]}
{[%emt 00:00:14]} e5 {[%clk 01:32:09]} {[%emt 00:00:20]} 8. d3 {[%clk
01:16:17]} {[%emt 00:01:49]} Be7 {[%clk 01:32:29]} {[%emt 00:00:10]} 9. Nd2
{[%clk 01:16:39]} {[%emt 00:00:08]} Bd7 {[%clk 01:32:49]} {[%emt 00:00:10]} 10.
Nc4 {[%clk 01:16:50]} {[%emt 00:00:18]} f6 {[%clk 01:33:04]} {[%emt 00:00:15]}
11. f4 {[%clk 01:15:53]} {[%emt 00:01:27]} b5 {[%clk 01:28:50]} {[%emt
00:04:44]} 12. Ne3 {[%clk 01:15:29]} {[%emt 00:00:52]} exf4 {[%clk 01:23:33]}
{[%emt 00:05:49]} 13. Rxf4 {[%clk 01:13:36]} {[%emt 00:02:23]} Rb8 {[%clk
01:23:57]} {[%emt 00:00:07]} 14. Nf5 {[%clk 01:06:33]} {[%emt 00:07:32]} Bxf5
{[%clk 01:22:00]} {[%emt 00:02:28]} 15. Rxf5 {[%clk 01:04:15]} {[%emt
00:02:47]} Nd4 {[%clk 01:22:24]} {[%emt 00:00:07]} 16. Rf1 {[%clk 01:02:43]}
{[%emt 00:02:01]} O-O {[%clk 01:22:20]} {[%emt 00:00:34]} 17. Bf4 {[%clk
01:02:33]} {[%emt 00:00:41]} Nde6 {[%clk 01:10:31]} {[%emt 00:12:19]} 18. Qb3
{[%clk 00:46:28]} {[%emt 00:16:34]} Kh8 {[%clk 01:10:15]} {[%emt 00:00:45]} 19.
Bxc7 {[%clk 00:46:20]} {[%emt 00:00:39]} Nxc7 {[%clk 01:10:34]} {[%emt
00:00:12]} 20. Nd5 {[%clk 00:46:30]} {[%emt 00:00:20]} Bd6 {[%clk 01:02:29]}
{[%emt 00:08:35]} 21. Nxc7 {[%clk 00:45:47]} {[%emt 00:01:12]} Qxc7 {[%clk
01:02:53]} {[%emt 00:00:07]} 22. Qd5 {[%clk 00:34:10]} {[%emt 00:12:07]} Rfd8
{[%clk 00:58:01]} {[%emt 00:05:21]} 23. Be4 {[%clk 00:27:49]} {[%emt 00:06:51]}
Be5 {[%clk 00:56:57]} {[%emt 00:01:35]} 24. Qb3 {[%clk 00:27:50]} {[%emt
00:00:29]} g6 {[%clk 00:50:23]} {[%emt 00:07:04]} 25. Rac1 {[%clk 00:24:50]}
{[%emt 00:03:30]} f5 {[%clk 00:43:02]} {[%emt 00:07:51]} 26. Bf3 {[%clk
00:24:48]} {[%emt 00:00:32]} Bd4+ {[%clk 00:43:16]} {[%emt 00:00:15]} 27. Kh1
{[%clk 00:22:50]} {[%emt 00:02:29]} Rf8 {[%clk 00:36:44]} {[%emt 00:07:02]} 28.
Qc2 {[%clk 00:18:34]} {[%emt 00:04:45]} Qe5 {[%clk 00:35:38]} {[%emt 00:01:36]}
29. b3 {[%clk 00:17:56]} {[%emt 00:01:08]} b4 {[%clk 00:35:52]} {[%emt
00:00:17]} 30. Qc4 {[%clk 00:17:27]} {[%emt 00:00:59]} Rbe8 {[%clk 00:32:52]}
{[%emt 00:03:30]} 31. Rc2 {[%clk 00:17:24]} {[%emt 00:00:32]} h5 {[%clk
00:27:13]} {[%emt 00:06:09]} 32. Qd5 {[%clk 00:13:43]} {[%emt 00:04:11]} Kg7
{[%clk 00:22:36]} {[%emt 00:05:08]} 33. Qxe5+ {[%clk 00:13:17]} {[%emt
00:00:56]} Rxe5 {[%clk 00:23:05]} {[%emt 00:00:01]} 34. e4 {[%clk 00:09:17]}
{[%emt 00:04:28]} fxe4 {[%clk 00:23:01]} {[%emt 00:00:35]} 35. dxe4 {[%clk
00:09:39]} {[%emt 00:00:08]} Rxe4 {[%clk 00:23:11]} {[%emt 00:00:20]} 36. Kg2
{[%clk 00:09:39]} {[%emt 00:00:28]} Re5 {[%clk 00:21:40]} {[%emt 00:02:02]} 37.
Be2 {[%clk 00:07:56]} {[%emt 00:02:14]} Rfe8 {[%clk 00:19:37]} {[%emt
00:02:33]} 38. Bc4 {[%clk 00:07:53]} {[%emt 00:00:32]} R8e7 {[%clk 00:20:02]}
{[%emt 00:00:05]} 39. Rf3 {[%clk 00:06:11]} {[%emt 00:02:13]} Re1 {[%clk
00:19:43]} {[%emt 00:00:48]} 40. Rf1 {[%clk 00:05:58]} {[%emt 00:00:43]} R1e4
{[%clk 00:18:50]} {[%emt 00:01:23]} 41. Rf3 {[%clk 00:05:59]} {[%emt 00:00:29]}
Re1 {[%clk 00:11:02]} {[%emt 00:08:18]} 42. Rf1 {[%clk 00:06:25]} {[%emt
00:00:04]} a5 {[%clk 00:11:29]} {[%emt 00:00:04]} 43. Rxe1 {[%clk 00:04:31]}
{[%emt 00:02:25]} Rxe1 {[%clk 00:11:52]} {[%emt 00:00:06]} 44. Kf3 {[%clk
00:04:33]} {[%emt 00:00:27]} g5 {[%clk 00:10:27]} {[%emt 00:01:55]} 45. Re2
{[%clk 00:04:24]} {[%emt 00:00:38]} Rxe2 {[%clk 00:09:03]} {[%emt 00:01:55]} 46.
Bxe2 {[%clk 00:04:25]} {[%emt 00:00:29]} g4+ {[%clk 00:08:57]} {[%emt
00:00:36]} 47. Kg2 {[%clk 00:03:09]} {[%emt 00:01:45]} Kf6 {[%clk 00:09:11]}
{[%emt 00:00:16]} 48. h3 {[%clk 00:03:34]} {[%emt 00:00:06]} Kf5 {[%clk
00:08:16]} {[%emt 00:01:25]} 49. hxg4+ {[%clk 00:03:30]} {[%emt 00:00:34]} hxg4
{[%clk 00:08:45]} {[%emt 00:00:01]} 50. Kf1 {[%clk 00:03:40]} {[%emt 00:00:19]}
Bg7 {[%clk 00:06:45]} {[%emt 00:02:30]} 51. Kf2 {[%clk 00:03:36]} {[%emt
00:00:34]} Bh6 {[%clk 00:06:40]} {[%emt 00:00:35]} 52. Ke1 {[%clk 00:03:37]}
{[%emt 00:00:27]} Bf8 {[%clk 00:06:31]} {[%emt 00:00:41]} 53. Kf2 {[%clk
00:03:52]} {[%emt 00:00:15]} Bd6 {[%clk 00:06:51]} {[%emt 00:00:09]} 54. Kg2
{[%clk 00:04:04]} {[%emt 00:00:18]} Ke4 {[%clk 00:06:40]} {[%emt 00:00:42]} 55.
Bxg4 {[%clk 00:04:27]} {[%emt 00:00:07]} Kd3 {[%clk 00:07:05]} {[%emt
00:00:05]} 56. Be6 {[%clk 00:04:20]} {[%emt 00:00:36]} Kc3 {[%clk 00:07:18]}
{[%emt 00:00:18]} 57. Kf3 {[%clk 00:04:02]} {[%emt 00:00:47]} Kb2 {[%clk
00:07:05]} {[%emt 00:00:44]} 58. Ke4 {[%clk 00:03:48]} {[%emt 00:00:42]} Kxa2
{[%clk 00:06:51]} {[%emt 00:00:47]} 59. Kd3 {[%clk 00:03:56]} {[%emt 00:00:20]}
Ka3 {[%clk 00:06:13]} {[%emt 00:01:09]} 60. Kc2 {[%clk 00:03:22]} {[%emt
00:01:04]} Bxg3 {[%clk 00:06:18]} {[%emt 00:00:25]} 61. Bc4 {[%clk 00:03:27]}
{[%emt 00:00:23]} Be5 {[%clk 00:05:40]} {[%emt 00:01:10]} 62. Bg8 {[%clk
00:03:20]} {[%emt 00:00:37]} Bf6 {[%clk 00:06:02]} {[%emt 00:00:08]} 63. Bf7
{[%clk 00:03:45]} {[%emt 00:00:05]} a4 {[%clk 00:06:24]} {[%emt 00:00:08]} 64.
bxa4 {[%clk 00:04:06]} {[%emt 00:00:09]} Kxa4 {[%clk 00:06:49]} {[%emt
00:00:05]} 65. Bb3+ {[%clk 00:04:21]} {[%emt 00:00:16]} Kb5 {[%clk 00:06:58]}
{[%emt 00:00:20]} 66. Kd3 {[%clk 00:04:47]} {[%emt 00:00:04]} Bg7 {[%clk
00:07:21]} {[%emt 00:00:08]} 67. Be6 {[%clk 00:04:58]} {[%emt 00:00:17]} Ka4
{[%clk 00:07:36]} {[%emt 00:00:16]} 68. Kc2 {[%clk 00:05:19]} {[%emt 00:00:09]}
Kb5 {[%clk 00:07:42]} {[%emt 00:00:24]} 69. Kb3 {[%clk 00:05:37]} {[%emt
00:00:11]} Kb6 {[%clk 00:08:08]} {[%emt 00:00:06]} 1/2-1/2